fUST/lending_fUST_20240802
["ID","MTS","AMOUNT","RATE_DAILY","PERIOD"]
[333875898,1722589842503,-151.0,0.00013962,2]
[333875899,1722589842513,-4321.1406502,0.00013962,2]
[333875900,1722589842523,-500.0,0.00013971,2]
[333875902,1722589842532,-500.0,0.00013971,2]
[333875904,1722589842541,-500.0,0.00013971,2]
[333875906,1722589842551,-500.0,0.00013971,2]
[333875907,1722589842561,-2403.6,0.00013971,2]
[333875908,1722589842570,-2403.6,0.00013971,2]
[333875909,1722589842581,-500.0,0.00013971,2]
[333875911,1722589842590,-500.0,0.00013971,2]
[333875912,1722589842600,-211.80389075,0.00013971,2]
[333875913,1722589842609,-500.0,0.00013971,2]
[333875914,1722589842619,-500.0,0.00013971,2]
[333875915,1722589842628,-498.22269994,0.00013971,2]
[333875916,1722589842637,-500.0,0.00013971,2]
[333875918,1722589842647,-500.0,0.00013971,2]
[333875919,1722589842656,-191.81604649,0.00013971,2]
[333875921,1722589842666,-500.0,0.00013971,2]
[333875922,1722589842676,-500.0,0.00013971,2]
[333875923,1722589842686,-500.0,0.00013971,2]
[333875924,1722589842695,-500.0,0.00013971,2]
[333875925,1722589842705,-500.0,0.00013972,2]
[333875926,1722589842714,-500.0,0.00013972,2]
[333875927,1722589842723,-500.0,0.00013972,2]
[333875928,1722589842732,-500.0,0.00013972,2]
[333875929,1722589842742,-500.37493868,0.00013972,2]
[333875930,1722589842751,-297.97492964,0.00013972,2]
[333875932,1722589842761,-500.0,0.00013972,2]
[333875934,1722589842770,-500.0,0.00013972,2]
[333875935,1722589842780,-500.0,0.00013972,2]
[333875937,1722589842790,-500.0,0.00013972,2]
[333875938,1722589842799,-500.0,0.00013972,2]
[333875939,1722589842809,-500.0,0.00013972,2]
[333875940,1722589842818,-500.0,0.00013972,2]
[333875941,1722589842828,-500.0,0.00013972,2]
[333875942,1722589842837,-500.0,0.00013972,2]
[333875943,1722589842848,-500.0,0.00013972,2]
[333875944,1722589842859,-500.0,0.00013972,2]
[333875945,1722589842869,-500.0,0.00013972,2]
[333875946,1722589842880,-500.0,0.00013972,2]
[333875947,1722589842890,-818.52,0.00013972,2]
[333875948,1722589842901,-500.0,0.00013972,2]
[333875949,1722589842911,-500.0,0.00013972,2]
[333875950,1722589842922,-500.0,0.00013972,2]
[333875952,1722589842932,-572.83793934,0.00013972,2]
[333875954,1722589842941,-500.0,0.00013972,2]
[333875956,1722589842951,-500.0,0.00013972,2]
[333875958,1722589842961,-500.0,0.00013972,2]
[333875960,1722589842970,-500.0,0.00013972,2]
[333875962,1722589842981,-500.0,0.00013972,2]
[333875963,1722589842990,-651.14,0.00013972,2]
[333875964,1722589843000,-500.0,0.00013972,2]
[333875965,1722589843009,-500.0,0.00013972,2]
[333875966,1722589843019,-500.0,0.00013972,2]
[333875967,1722589843028,-500.0,0.00013972,2]
[333875968,1722589843038,-500.0,0.00013972,2]
[333875969,1722589843049,-500.0,0.00013972,2]
[333875970,1722589843059,-512.88636566,0.00013972,2]
[333875971,1722589843068,-500.0,0.00013972,2]
[333875972,1722589843078,-503.53013191,0.00013972,2]
[333875973,1722589843087,-500.0,0.00013972,2]
[333875974,1722589843099,-500.0,0.00013972,2]
[333875975,1722589843109,-500.0,0.00013972,2]
[333875976,1722589843118,-500.0,0.00013972,2]
[333875977,1722589843128,-510.79364458,0.00013972,2]
[333875978,1722589843138,-507.51126654,0.00013972,2]
[333875979,1722589843147,-505.74303105,0.00013972,2]
[333875980,1722589843157,-327.79382938,0.00013972,2]
[333875981,1722589843166,-500.0,0.00013972,2]
[333875982,1722589843180,-302.66513445,0.00013972,2]
[333875983,1722589843188,-500.0,0.00013972,2]
[333875984,1722589843197,-502.2283621,0.00013972,2]
[333875985,1722589843207,-500.0,0.00013972,2]
[333875986,1722589843217,-500.0,0.00013972,2]
[333875987,1722589843226,-504.73581637,0.00013972,2]
[333875988,1722589843235,-500.0,0.00013972,2]
[333875989,1722589843244,-500.0,0.00013972,2]
[333875990,1722589843254,-500.0,0.00013972,2]
[333875991,1722589843263,-500.0,0.00013972,2]
[333875992,1722589843272,-500.0,0.00013972,2]
[333875993,1722589843282,-500.0,0.00013972,2]
[333875994,1722589843291,-523.4497655,0.00013972,2]
[333875995,1722589843301,-500.0,0.00013972,2]
[333875996,1722589843310,-500.0,0.00013972,2]
[333875997,1722589843320,-500.0,0.00013972,2]
[333875998,1722589843329,-509.39,0.00013972,2]
[333875999,1722589843339,-504.47015869,0.00013972,2]
[333876000,1722589843349,-410.93632959,0.00013972,2]
[333876001,1722589843359,-500.0,0.00013972,2]
[333876002,1722589843368,-500.0,0.00013972,2]
[333876003,1722589843378,-500.0,0.00013972,2]
[333876004,1722589843387,-500.0,0.00013972,2]
[333876005,1722589843397,-500.0,0.00013972,2]
[333876006,1722589843407,-500.0,0.00013972,2]
[333876007,1722589843418,-645.68328274,0.00013972,2]
[333876008,1722589843428,-500.0,0.00013972,2]
[333876009,1722589843439,-500.0,0.00013972,2]
[333876010,1722589843449,-500.0,0.00013972,2]
[333876011,1722589843459,-500.0,0.00013972,2]
[333876012,1722589843469,-500.0,0.00013972,2]
[333876013,1722589843479,-500.0,0.00013972,2]
[333876014,1722589843490,-500.0,0.00013972,2]
[333876015,1722589843499,-500.0,0.00013972,2]
[333876016,1722589843509,-500.0,0.00013972,2]
[333876017,1722589843518,-500.0,0.00013972,2]
[333876018,1722589843530,-507.17278108,0.00013972,2]
[333876019,1722589843539,-293.596341,0.00013972,2]
[333876020,1722589843549,-293.596341,0.00013972,2]
[333876021,1722589843560,-500.0,0.00013972,2]
[333876022,1722589843569,-151.0,0.00013972,2]
[333876023,1722589843579,-500.0,0.00013972,2]
[333876024,1722589843589,-247.62603104,0.00013972,2]
[333876025,1722589843599,-577.38343909,0.00013972,2]
[333876026,1722589843609,-500.0,0.00013972,2]
[333876027,1722589843619,-500.0,0.00013972,2]
[333876028,1722589843629,-501.43,0.00013972,2]
[333876029,1722589843639,-500.0,0.00013972,2]
[333876030,1722589843733,-248.21747,0.00013972,2]
[333876031,1722589843744,-613.97468951,0.00013972,2]
[333876032,1722589843755,-502.71016885,0.00013972,2]
[333876033,1722589843765,-500.0,0.00013972,2]
[333876034,1722589843776,-500.0,0.00013972,2]
[333876035,1722589843787,-500.0,0.00013972,2]
[333876036,1722589843798,-577.4,0.00013972,2]
[333876037,1722589843809,-500.0,0.00013972,2]
[333876038,1722589843818,-2059.62,0.00013972,2]
[333876039,1722589843829,-644.95583383,0.00013972,2]
[333876040,1722589843840,-500.0,0.00013972,2]
[333876041,1722589843851,-151.0,0.00013972,2]
[333876042,1722589843862,-500.0,0.00013972,2]
[333876043,1722589843874,-157.661468,0.00013972,2]
[333876044,1722589843884,-1764.26,0.00013972,2]
[333876045,1722589843894,-253.4535885,0.00013972,2]
[333876046,1722589843904,-157.661468,0.00013972,2]
[333876047,1722589843915,-500.0,0.00013972,2]
[333876048,1722589843926,-500.0,0.00013972,2]
[333876049,1722589843938,-807.78,0.00013972,2]
[333876050,1722589843948,-500.0,0.00013972,2]
[333876051,1722589843958,-500.0,0.00013972,2]
[333876052,1722589843968,-151.0,0.00013972,2]
[333876053,1722589843978,-500.0,0.00013972,2]
[333876054,1722589843989,-500.0,0.00013972,2]
[333876055,1722589843999,-151.0,0.00013972,2]
[333876056,1722589844010,-500.0,0.00013972,2]
[333876057,1722589844021,-503.43581047,0.00013972,2]
[333876058,1722589844030,-151.0,0.00013972,2]
[333876059,1722589844042,-500.0,0.00013972,2]
[333876060,1722589844056,-151.0,0.00013972,2]
[333876061,1722589844065,-259.770944,0.00013972,2]
[333876062,1722589844075,-151.0,0.00013972,2]
[333876063,1722589844085,-500.0,0.00013972,2]
[333876064,1722589844097,-151.0,0.00013972,2]
[333876065,1722589844107,-500.0,0.00013972,2]
[333876066,1722589844119,-500.0,0.00013972,2]
[333876067,1722589844133,-500.0,0.00013972,2]
[333876068,1722589844143,-500.0,0.00013972,2]
[333876069,1722589844154,-500.0,0.00013972,2]
[333876070,1722589844164,-290.65959005,0.00013972,2]
[333876071,1722589844176,-500.0,0.00013972,2]
[333876072,1722589844187,-151.0,0.00013972,2]
[333876073,1722589844197,-500.0,0.00013972,2]
[333876074,1722589844209,-500.0,0.00013972,2]
[333876075,1722589844221,-151.0,0.00013972,2]
[333876076,1722589844231,-500.0,0.00013972,2]
[333876077,1722589844242,-500.0,0.00013972,2]
[333876078,1722589844252,-2047.2,0.00013972,2]
[333876079,1722589844262,-848.28,0.00013972,2]
[333876080,1722589844274,-500.0,0.00013972,2]
[333876081,1722589844284,-500.0,0.00013972,2]
[333876082,1722589844295,-500.0,0.00013972,2]
[333876083,1722589844307,-151.0,0.00013972,2]
[333876084,1722589844317,-500.0,0.00013972,2]
[333876085,1722589844327,-500.0,0.00013972,2]
[333876086,1722589844337,-500.0,0.00013972,2]
[333876087,1722589844347,-500.0,0.00013972,2]
[333876088,1722589844358,-644.32,0.00013972,2]
[333876089,1722589844368,-500.0,0.00013972,2]
[333876090,1722589844379,-500.0,0.00013972,2]
[333876091,1722589844390,-500.0,0.00013972,2]
[333876092,1722589844401,-245.568076,0.00013972,2]
[333876093,1722589844411,-898.01,0.00013972,2]
[333876094,1722589844421,-500.0,0.00013972,2]
[333876095,1722589844430,-247.698763,0.00013972,2]
[333876096,1722589844440,-500.0,0.00013972,2]
[333876097,1722589844449,-245.568076,0.00013972,2]
[333876098,1722589844460,-247.698763,0.00013972,2]
[333876099,1722589844471,-500.0,0.00013972,2]
[333876100,1722589844481,-500.0,0.00013972,2]
[333876101,1722589844492,-500.0,0.00013972,2]
[333876102,1722589844503,-500.0,0.00013972,2]
[333876103,1722589844514,-500.0,0.00013972,2]
[333876104,1722589844526,-272.976868,0.00013972,2]
[333876105,1722589844538,-500.0,0.00013972,2]
[333876106,1722589844548,-553.24679722,0.00013972,2]
[333876107,1722589844558,-500.0,0.00013972,2]
[333876108,1722589844569,-500.0,0.00013972,2]
[333876109,1722589844580,-500.0,0.00013972,2]
[333876110,1722589844591,-615.5,0.00013972,2]
[333876111,1722589844601,-500.0,0.00013972,2]
[333876112,1722589844611,-272.976868,0.00013972,2]
[333876113,1722589844621,-500.0,0.00013972,2]
[333876114,1722589844631,-216.491155,0.00013972,2]
[333876115,1722589844646,-500.0,0.00013972,2]
[333876116,1722589844661,-216.491155,0.00013972,2]
[333876117,1722589844677,-500.0,0.00013972,2]
[333876118,1722589844689,-500.0,0.00013972,2]
[333876119,1722589844702,-500.0,0.00013972,2]
[333876120,1722589844717,-151.0,0.00013972,2]
[333876121,1722589844730,-500.0,0.00013972,2]
[333876122,1722589844744,-151.0,0.00013972,2]
[333876123,1722589844756,-500.0,0.00013972,2]
[333876124,1722589844771,-500.0,0.00013972,2]
[333876125,1722589844784,-500.0,0.00013972,2]
[333876126,1722589844797,-500.0,0.00013972,2]
[333876127,1722589844809,-500.0,0.00013972,2]
[333876128,1722589844821,-500.0,0.00013972,2]
[333876129,1722589844835,-500.0,0.00013972,2]
[333876130,1722589844848,-500.0,0.00013972,2]
[333876131,1722589844860,-500.0,0.00013972,2]
[333876132,1722589844871,-500.0,0.00013972,2]
[333876133,1722589844884,-672.93,0.00013972,2]
[333876134,1722589844897,-505.97170029,0.00013972,2]
[333876135,1722589844911,-455.4154248,0.00014,2]
[333876136,1722589844927,-153.0,0.00014,2]
[333876137,1722589844940,-153.0,0.00014,2]
[333876138,1722589844955,-206.9342036,0.00014,2]
[333876139,1722589844969,-153.0,0.00014,2]
[333876140,1722589844982,-206.9342036,0.00014,2]
[333876141,1722589844994,-206.9342036,0.00014,2]
[333876142,1722589845006,-294.1189291,0.00014,2]
[333876143,1722589845017,-359.42475422,0.00014056,2]
[333876144,1722589845032,-2160.5703251,0.00014081,2]
[333876145,1722589845049,-1865.48314745,0.00014094,2]
[333876146,1722589845061,-4349.07410315,0.00014108,2]
[333876147,1722589845075,-150.0,0.00014126,2]
[333876148,1722589845088,-150.112233,0.000142,2]
[333876149,1722589845102,-153.0,0.000142,2]
[333876150,1722589845113,-2160.5703251,0.00014226,2]
[333876151,1722589845126,-2403.6,0.00014235,2]
[333876152,1722589845137,-151.0,0.00014236,2]
[333876153,1722589845150,-151.0,0.00014236,2]
[333876154,1722589845162,-293.596341,0.00014236,2]
[333876155,1722589845173,-293.596341,0.00014236,2]
[333876156,1722589845185,-151.0,0.00014236,2]
[333876157,1722589845197,-151.0,0.00014236,2]
[333876158,1722589845208,-157.661468,0.00014236,2]
[333876159,1722589845219,-157.661468,0.00014236,2]
[333876160,1722589845231,-151.0,0.00014236,2]
[333876161,1722589845243,-151.0,0.00014236,2]
[333876162,1722589845254,-151.0,0.00014236,2]
[333876163,1722589845266,-151.0,0.00014236,2]
[333876164,1722589845278,-151.0,0.00014236,2]
[333876165,1722589845290,-151.0,0.00014236,2]
[333876166,1722589845302,-151.0,0.00014236,2]
[333876167,1722589845313,-245.568076,0.00014236,2]
[333876168,1722589845326,-247.698763,0.00014236,2]
[333876169,1722589845339,-245.568076,0.00014236,2]
[333876170,1722589845352,-247.698763,0.00014236,2]
[333876171,1722589845364,-272.976868,0.00014236,2]
[333876172,1722589845376,-272.976868,0.00014236,2]
[333876173,1722589845389,-216.491155,0.00014236,2]
[333876174,1722589845401,-216.491155,0.00014236,2]
[333876175,1722589845414,-151.0,0.00014236,2]
[333876176,1722589845428,-151.0,0.00014236,2]
[333876177,1722589845439,-4321.1406502,0.00014236,2]
[333876178,1722589845450,-500.0,0.00014245,2]
[333876179,1722589845462,-500.0,0.00014245,2]
[333876180,1722589845476,-500.0,0.00014245,2]
[333876181,1722589845489,-500.0,0.00014245,2]
[333876182,1722589845501,-2403.6,0.00014245,2]
[333876183,1722589845514,-2403.6,0.00014245,2]
[333876184,1722589845526,-500.0,0.00014246,2]
[333876185,1722589845538,-500.0,0.00014246,2]
[333876186,1722589845550,-500.0,0.00014246,2]
[333876187,1722589845564,-500.0,0.00014246,2]
[333876188,1722589845576,-500.0,0.00014246,2]
[333876189,1722589845589,-500.0,0.00014246,2]
[333876190,1722589845602,-500.0,0.00014246,2]
[333876191,1722589845613,-500.0,0.00014246,2]
[333876192,1722589845627,-500.0,0.00014246,2]
[333876193,1722589845640,-286.87097525,0.00014246,2]
[333876194,1722589845650,-818.52,0.00014246,2]
[333876195,1722589845661,-500.0,0.00014246,2]
[333876196,1722589845673,-500.0,0.00014246,2]
[333876197,1722589845683,-500.0,0.00014246,2]
[333876198,1722589845693,-500.0,0.00014246,2]
[333876199,1722589845821,-651.14,0.00014246,2]
[333876200,1722589845838,-500.0,0.00014246,2]
[333876201,1722589845850,-500.0,0.00014246,2]
[333876203,1722589845860,-500.0,0.00014246,2]
[333876205,1722589845871,-500.0,0.00014246,2]
[333876207,1722589845881,-500.0,0.00014246,2]
[333876209,1722589845891,-500.0,0.00014246,2]
[333876211,1722589845901,-500.0,0.00014246,2]
[333876213,1722589845913,-500.0,0.00014246,2]
[333876216,1722589845925,-500.0,0.00014246,2]
[333876218,1722589845937,-500.0,0.00014246,2]
[333876220,1722589845947,-500.0,0.00014246,2]
[333876222,1722589845958,-500.0,0.00014246,2]
[333876224,1722589845967,-616.8,0.00014246,2]
[333876226,1722589845977,-500.0,0.00014246,2]
[333876228,1722589845988,-500.0,0.00014246,2]
[333876230,1722589845999,-500.0,0.00014246,2]
[333876232,1722589846009,-509.39,0.00014246,2]
[333876234,1722589846019,-151.0,0.00014246,2]
[333876236,1722589846030,-173.463147,0.00014246,2]
[333876237,1722589846040,-500.0,0.00014246,2]
[333876238,1722589846053,-500.0,0.00014246,2]
[333876239,1722589846063,-500.0,0.00014246,2]
[333876240,1722589846073,-500.0,0.00014246,2]
[333876241,1722589846083,-500.0,0.00014246,2]
[333876242,1722589846094,-500.0,0.00014246,2]
[333876243,1722589846103,-407.85056107,0.00014246,2]
[333876244,1722589846113,-500.0,0.00014246,2]
[333876245,1722589846125,-500.0,0.00014246,2]
[333876246,1722589846135,-500.0,0.00014246,2]
[333876247,1722589846145,-500.0,0.00014246,2]
[333876248,1722589846156,-500.0,0.00014246,2]
[333876249,1722589846166,-500.0,0.00014246,2]
[333876250,1722589846177,-501.43,0.00014246,2]
[333876251,1722589846188,-500.0,0.00014246,2]
[333876252,1722589846198,-522.45,0.00014246,2]
[333876253,1722589846208,-500.0,0.00014246,2]
[333876254,1722589846218,-577.4,0.00014246,2]
[333876255,1722589846228,-500.0,0.00014246,2]
[333876256,1722589846239,-2059.62,0.00014246,2]
[333876257,1722589846248,-500.0,0.00014246,2]
[333876258,1722589846258,-500.0,0.00014246,2]
[333876259,1722589846267,-1764.26,0.00014246,2]
[333876260,1722589846277,-500.0,0.00014246,2]
[333876261,1722589846286,-342.41987052,0.00014246,2]
[333876262,1722589846296,-807.78,0.00014246,2]
[333876263,1722589846307,-602.84,0.00014246,2]
[333876264,1722589846316,-500.0,0.00014246,2]
[333876265,1722589846326,-500.0,0.00014246,2]
[333876266,1722589846336,-500.0,0.00014246,2]
[333876267,1722589846345,-553.1,0.00014246,2]
[333876268,1722589846355,-500.0,0.00014246,2]
[333876269,1722589846364,-500.0,0.00014246,2]
[333876270,1722589846374,-500.0,0.00014246,2]
[333876271,1722589846384,-500.0,0.00014246,2]
[333876272,1722589846393,-500.0,0.00014246,2]
[333876274,1722589846403,-500.0,0.00014246,2]
[333876275,1722589846412,-500.0,0.00014246,2]
[333876276,1722589846422,-500.0,0.00014246,2]
[333876278,1722589846432,-500.0,0.00014246,2]
[333876280,1722589846441,-500.0,0.00014246,2]
[333876282,1722589846451,-2047.2,0.00014246,2]
[333876284,1722589846461,-848.28,0.00014246,2]
[333876286,1722589846470,-500.0,0.00014246,2]
[333876288,1722589846480,-247.97682975,0.00014246,2]
[333876289,1722589846490,-562.08,0.00014246,2]
[333876292,1722589846500,-500.0,0.00014246,2]
[333876294,1722589846509,-500.0,0.00014246,2]
[333876296,1722589846519,-500.0,0.00014246,2]
[333876297,1722589846528,-500.0,0.00014246,2]
[333876299,1722589846537,-644.32,0.00014246,2]
[333876301,1722589846547,-500.0,0.00014246,2]
[333876303,1722589846557,-500.0,0.00014246,2]
[333876305,1722589846567,-898.01,0.00014246,2]
[333876308,1722589846576,-500.0,0.00014246,2]
[333876310,1722589846586,-500.0,0.00014246,2]
[333876312,1722589846596,-500.0,0.00014246,2]
[333876314,1722589846606,-500.0,0.00014246,2]
[333876316,1722589846615,-500.0,0.00014246,2]
[333876318,1722589846626,-500.0,0.00014246,2]
[333876320,1722589846635,-500.0,0.00014246,2]
[333876322,1722589846645,-500.0,0.00014246,2]
[333876324,1722589846655,-500.0,0.00014246,2]
[333876325,1722589846667,-615.5,0.00014246,2]
[333876327,1722589846677,-533.85,0.00014246,2]
[333876329,1722589846687,-500.0,0.00014246,2]
[333876330,1722589846697,-500.0,0.00014246,2]
[333876331,1722589846706,-500.0,0.00014246,2]
[333876333,1722589846716,-500.0,0.00014246,2]
[333876335,1722589846726,-500.0,0.00014246,2]
[333876336,1722589846736,-261.90000468,0.00014246,2]
[333876338,1722589846746,-157.67,0.00014246,2]
[333876340,1722589846756,-500.0,0.00014246,2]
[333876341,1722589846765,-500.0,0.00014246,2]
[333876342,1722589846775,-500.0,0.00014246,2]
[333876343,1722589846784,-500.0,0.00014246,2]
[333876344,1722589846793,-500.0,0.00014246,2]
[333876345,1722589846803,-500.0,0.00014246,2]
[333876346,1722589846813,-500.0,0.00014246,2]
[333876347,1722589846822,-500.0,0.00014246,2]
[333876348,1722589846832,-672.93,0.00014246,2]
[333876349,1722589846842,-330.011094,0.00014247,2]
[333876350,1722589846852,-419.988906,0.00014247,2]
[333876351,1722589846861,-306.0,0.00014329,2]
[333876352,1722589846871,-294.2025256,0.00014329,2]
[333876353,1722589846881,-1865.48314745,0.00014342,2]
[333876354,1722589846890,-447.36500374,0.00014476,2]
[333876355,1722589846899,-500.0,0.00014476,2]
[333876356,1722589846909,-154.74467129,0.00014487,2]
[333876357,1722589846919,-1880.40905366,0.00014487,2]
[333876358,1722589846930,-150.112233,0.000145,2]
[333876359,1722589846939,-500.0,0.00014509,2]
[333876360,1722589846949,-2403.6,0.00014509,2]
[333876361,1722589846958,-2160.5703251,0.00014509,2]
[333876362,1722589846968,-151.0,0.0001451,2]
[333876363,1722589846978,-151.0,0.0001451,2]
[333876364,1722589846988,-2160.5703251,0.0001451,2]
[333876365,1722589846998,-1736.52,0.00014519,2]
[333876366,1722589847008,-177.609964,0.00014519,2]
[333876367,1722589847019,-177.609964,0.00014519,2]
[333876368,1722589847028,-151.0,0.00014519,2]
[333876369,1722589847038,-151.0,0.00014519,2]
[333876370,1722589847048,-231.412833,0.00014519,2]
[333876371,1722589847060,-151.0,0.00014519,2]
[333876372,1722589847069,-500.0,0.00014519,2]
[333876373,1722589847079,-151.0,0.00014519,2]
[333876374,1722589847089,-245.568076,0.00014519,2]
[333876375,1722589847100,-247.698763,0.00014519,2]
[333876376,1722589847110,-245.568076,0.00014519,2]
[333876377,1722589847119,-247.698763,0.00014519,2]
[333876378,1722589847130,-272.976868,0.00014519,2]
[333876379,1722589847139,-272.976868,0.00014519,2]
[333876380,1722589847148,-216.491155,0.00014519,2]
[333876381,1722589847157,-216.491155,0.00014519,2]
[333876382,1722589847167,-151.0,0.00014519,2]
[333876383,1722589847177,-151.0,0.00014519,2]
[333876384,1722589847187,-2403.6,0.00014519,2]
[333876385,1722589847197,-2403.6,0.00014519,2]
[333876386,1722589847206,-645.68121972,0.00014519,2]
[333876387,1722589847216,-203.19374433,0.00014519,2]
[333876388,1722589847225,-268.51526771,0.00014519,2]
[333876389,1722589847234,-500.0,0.00014519,2]
[333876390,1722589847244,-500.0,0.00014519,2]
[333876391,1722589847253,-500.0,0.00014519,2]
[333876392,1722589847263,-500.0,0.00014519,2]
[333876393,1722589847272,-500.0,0.00014519,2]
[333876394,1722589847282,-500.0,0.00014519,2]
[333876395,1722589847291,-500.0,0.00014519,2]
[333876396,1722589847300,-500.0,0.00014519,2]
[333876397,1722589847309,-500.0,0.00014519,2]
[333876398,1722589847319,-500.0,0.00014519,2]
[333876399,1722589847329,-500.0,0.00014519,2]
[333876400,1722589847338,-17410.78683999,0.0001452,5]
[333876401,1722589847348,-500.0,0.0001452,2]
[333876402,1722589847358,-500.0,0.0001452,2]
[333876403,1722589847367,-500.0,0.0001452,2]
[333876404,1722589847377,-500.0,0.0001452,2]
[333876405,1722589847386,-500.0,0.0001452,2]
[333876406,1722589847396,-500.0,0.0001452,2]
[333876407,1722589847405,-500.0,0.0001452,2]
[333876408,1722589847415,-500.0,0.0001452,2]
[333876409,1722589847425,-818.52,0.0001452,2]
[333876410,1722589847434,-500.0,0.0001452,2]
[333876411,1722589847444,-500.0,0.0001452,2]
[333876412,1722589847454,-515.32158002,0.0001452,2]
[333876413,1722589847464,-651.14,0.0001452,2]
[333876414,1722589847474,-500.0,0.0001452,2]
[333876415,1722589847484,-500.0,0.0001452,2]
[333876416,1722589847493,-594.78879982,0.0001452,2]
[333876417,1722589847503,-500.0,0.0001452,2]
[333876418,1722589847513,-500.0,0.0001452,2]
[333876419,1722589847522,-500.0,0.0001452,2]
[333876420,1722589847532,-500.0,0.0001452,2]
[333876421,1722589847542,-509.39,0.0001452,2]
[333876422,1722589847552,-500.0,0.0001452,2]
[333876423,1722589847561,-500.0,0.0001452,2]
[333876424,1722589847570,-500.0,0.0001452,2]
[333876425,1722589847580,-500.0,0.0001452,2]
[333876426,1722589847589,-500.0,0.0001452,2]
[333876427,1722589847599,-500.0,0.0001452,2]
[333876428,1722589847608,-500.0,0.0001452,2]
[333876429,1722589847617,-293.596341,0.0001452,2]
[333876430,1722589847627,-293.596341,0.0001452,2]
[333876431,1722589847637,-151.0,0.0001452,2]
[333876432,1722589847647,-500.0,0.0001452,2]
[333876433,1722589847657,-501.43,0.0001452,2]
[333876434,1722589847667,-577.4,0.0001452,2]
[333876435,1722589847680,-500.0,0.0001452,2]
[333876436,1722589847690,-2059.62,0.0001452,2]
[333876437,1722589847700,-500.0,0.0001452,2]
[333876438,1722589847710,-500.0,0.0001452,2]
[333876439,1722589847719,-157.661468,0.0001452,2]
[333876440,1722589847730,-1764.26,0.0001452,2]
[333876441,1722589847740,-157.661468,0.0001452,2]
[333876442,1722589847750,-200.82,0.0001452,2]
[333876443,1722589847760,-807.78,0.0001452,2]
[333876444,1722589847769,-151.0,0.0001452,2]
[333876445,1722589847779,-500.0,0.0001452,2]
[333876446,1722589847789,-500.0,0.0001452,2]
[333876447,1722589847799,-151.0,0.0001452,2]
[333876448,1722589847808,-500.0,0.0001452,2]
[333876449,1722589847817,-151.0,0.0001452,2]
[333876450,1722589847827,-151.0,0.0001452,2]
[333876451,1722589847837,-500.0,0.0001452,2]
[333876452,1722589847847,-500.0,0.0001452,2]
[333876453,1722589847857,-500.0,0.0001452,2]
[333876454,1722589847866,-500.0,0.0001452,2]
[333876455,1722589847876,-151.0,0.0001452,2]
[333876456,1722589847885,-500.0,0.0001452,2]
[333876457,1722589847895,-500.0,0.0001452,2]
[333876458,1722589847906,-151.0,0.0001452,2]
[333876459,1722589847916,-500.0,0.0001452,2]
[333876460,1722589847928,-500.0,0.0001452,2]
[333876461,1722589847938,-2047.2,0.0001452,2]